Cogmind - Beta 16 @@@ ROGUE MODE // 2025.11.16 @ 15:46:01 Player: Palikka Result: Destroyed by P-70 Sage with Tesla Rifle Performance ------------- Evolutions (6) 3000 Regions Visited (16) 3200 Robots Destroyed (213) 1065 Value Destroyed (8046) 8046 Prototype IDs (23) 460 Alien Tech Used (0) 0 Bonus (2650) 2650 TOTAL SCORE: 18421 Bonus ------- High Alert Combat Kills 228 Follower Combat Kills 1402 Met Data Miner 300 Built Enhanced Grunts 300 Met R17 at Cetus 500 Friendly Fire -80 Cogmind --------- Core Integrity 0/1150 Matter 290/300 Energy 89/100 System Corruption 11% Temperature Cool (0) Movement Core (50) Location -4/Factory Parts ------- > --- POWER (2) -------- (None) > --- PROPULSION (6) --- (None) > --- UTILITY (8) ------ Advanced Visual Processing Unit Advanced Signal Interpreter Advanced Terrain Scan Processor Improved Targeting Computer Improved Target Analyzer Improved System Shield > --- WEAPON (3) ------- (None) > --- INVENTORY (5) ---- Micro Fission Core Field Propulsion Array Advanced Sensor Array Advanced Plasma Cannon Peak State ------------ > --- POWER ------------ Micro Fission Core Quantum Reactor > --- PROPULSION ------- Centrium Wheel Centrium Wheel Centrium Wheel Centrium Wheel Gyrokinetic Inverter Gyrokinetic Inverter > --- UTILITY ---------- Advanced Heat Sink Advanced Visual Processing Unit Advanced Sensor Array Improved Signal Interpreter Advanced Signal Interpreter Advanced Terrain Scan Processor Improved Target Analyzer Improved Force Field > --- WEAPON ----------- Advanced Plasma Cannon Hardcell Cannon Advanced Datajack > --- INVENTORY -------- Centrium Wheel Field Propulsion Array Improved Target Analyzer Heavy Rocket Launcher [Rating: 115] Favorites ----------- Power Micro Nuclear Core Engine Improved Deuterium Engine Power Core Micro Nuclear Core Reactor Quantum Reactor Propulsion Light Treads Treads Light Treads Leg Multireflex Exoskeleton Wheel Centrium Wheel Hover Unit Gyrokinetic Inverter Flight Unit VTOL Module Utility Advanced Visual Processing Unit Device Seismic Detector Storage High-capacity Storage Unit Processor Advanced Visual Processing Unit Hackware Improved System Shield Protection Powered Armor Weapon Minigun Energy Gun Wave Gun Energy Cannon Advanced Plasma Cannon Ballistic Gun Minigun Ballistic Cannon Advanced Assault Cannon Launcher Grenade Launcher Impact Weapon Power Maul Special Melee Weapon Advanced Datajack Build | -11 -10 -10 -8 -7 -7 -7 -7 -7 -6 -6 -6 -6 -6 -6 -5 -4 ------- Run | Yrd Mat Sub Mat Fac Was Fac Low Dat Pro Fac Ext Cet Arc Hub Fac Fac Slots Evolved 12 | . . . 4 2 . . . . . 2 . . . . 2 2 Power 1 | . . . . . . . . . . 1 . . . . . . Propulsion 4 | . . . 1 1 . . . . . 1 . . . . . 1 Utility 6 | . . . 3 1 . . . . . . . . . . 2 . Weapon 1 | . . . . . . . . . . . . . . . . 1 Parts Attached 215 | 2 16 6 36 10 4 19 3 1 8 10 33 7 1 . 21 38 Power 27 | . 1 2 4 1 1 2 . . 1 1 4 2 . . 3 5 Engine 8 | . 1 1 2 1 . . . . . . 3 . . . . . Core 16 | . . 1 2 . . 2 . . 1 1 1 1 . . 3 4 Reactor 3 | . . . . . 1 . . . . . . 1 . . . 1 Propulsion 70 | . 3 2 11 2 2 6 . . 4 4 16 2 . . 6 12 Treads 30 | . 3 2 11 2 2 5 . . . 1 3 1 . . . . Leg 16 | . . . . . . . . . . . 13 1 . . 2 . Wheel 7 | . . . . . . 1 . . . . . . . . 2 4 Hover 7 | . . . . . . . . . 1 . . . . . 2 4 Flight 10 | . . . . . . . . . 3 3 . . . . . 4 Utility 69 | 1 7 . 12 3 . 5 3 . 3 5 8 2 . . 7 13 Device 26 | 1 4 . 3 1 . . 2 . . 1 3 . . . 5 6 Storage 9 | . 3 . . 1 . 1 . . 1 . 1 1 . . 1 . Processor 15 | . . . 2 1 . . . . 2 3 1 . . . . 6 Hackware 1 | . . . . . . . . . . . . . . . . 1 Protection 18 | . . . 7 . . 4 1 . . 1 3 1 . . 1 . Artifact . | . . . . . . . . . . . . . . . . . Weapon 49 | 1 5 2 9 4 1 6 . 1 . . 5 1 1 . 5 8 Energy Gun 3 | . . . 2 . . . . . . . . . 1 . . . Energy Cannon 6 | . . . . . . . . . . . 1 . . . . 5 Ballistic Gun 18 | 1 4 2 3 2 . 2 . . . . 2 1 . . . 1 Ballistic Cannon 12 | . . . . 1 1 3 . 1 . . . . . . 5 1 Launcher 3 | . 1 . 1 . . . . . . . 1 . . . . . Special Weapon . | . . . . . . . . . . . . . . . . . Impact Weapon 6 | . . . 3 1 . 1 . . . . 1 . . . . . Slashing Weapon . | . . . . . . . . . . . . . . . . . Piercing Weapon . | . . . . . . . . . . . . . . . . . Special Melee Weapon 1 | . . . . . . . . . . . . . . . . 1 Unidentified Prototypes 9 | . . . 2 . . . . . . . 1 4 . . 1 1 Parts Lost 65 | . . 2 2 3 . 8 3 . 4 6 2 . . . 23 12 Power 9 | . . . 1 . . 2 . . . . 1 . . . 4 1 Propulsion 27 | . . 1 1 1 . 2 1 . 3 6 . . . . 7 5 Utility 17 | . . 1 . 1 . 2 . . 1 . 1 . . . 8 3 Weapon 12 | . . . . 1 . 2 2 . . . . . . . 4 3 Highest Loss Streak 8 | . . 1 1 1 . 4 2 . 3 4 1 . . . 8 5 To Critical Strikes 1 | . . . . . . . . . . . . . . . 1 . Average Backups 15 | 6 15 19 19 19 19 19 18 15 11 4 6 9 9 9 15 4 Power 1 | 1 2 2 1 . . 1 2 2 1 . . 1 1 1 1 . Propulsion 1 | 4 3 3 2 3 2 1 . . . . 1 1 1 1 . . Utility 4 | . 6 7 6 5 5 5 5 6 4 2 1 3 3 3 3 . Weapon 7 | 1 4 6 9 10 11 10 10 7 5 1 2 3 4 4 8 2 Tool/Special . | . . . . . . . . . . . . . . . . . Unused Backups 80 | 5 8 1 16 3 1 7 5 . 6 2 6 2 . . 13 5 Power 18 | 1 1 1 1 2 . 4 3 . 2 . . 2 . . 1 . Propulsion 15 | 2 4 . 2 . 1 . . . . . 4 . . . 1 1 Utility 16 | 1 1 . 6 . . . 1 . . 1 1 . . . 3 2 Weapon 29 | 1 2 . 7 1 . 3 1 . 4 1 1 . . . 6 2 Tool/Special 2 | . . . . . . . . . . . . . . . 2 . Average Slot Usage (%) 90 | . 99 99 99 99 98 88 88 63 64 49 88 85 86 86 82 75 Engine 3 | . 14 12 3 5 6 . . . . . 7 6 . . . . Core 3 | . . 1 5 1 . 4 7 7 5 1 2 . 6 6 6 3 Reactor 1 | . . . . . . 2 . . . . . 5 6 6 1 1 Treads 17 | . 27 28 27 29 28 22 16 7 3 3 2 . . . . . Leg 3 | . . . . . . . . . . . 22 20 20 20 14 . Wheel 1 | . . . . . . . 3 . . . . . . . . 11 Hover 1 | . . . . . . . . . 2 . . . . . . 11 Device 10 | . 12 13 11 13 15 11 14 15 10 . 5 . . 4 13 9 Storage 7 | . 15 14 9 7 7 7 7 7 4 . 2 6 6 6 4 . Processor 14 | . . . 8 13 15 15 15 15 16 30 26 26 26 26 21 21 Protection 6 | . . . 15 10 7 7 7 7 4 . 4 5 6 1 2 . Ballistic Gun 8 | . 25 27 15 6 . 1 6 2 4 . 3 12 10 5 . 1 Ballistic Cannon 2 | . . . . 2 6 6 2 . 4 . . . . . 3 . Impact Weapon 2 | . . . 1 5 7 5 3 . 2 5 2 . . . 2 . Peak Build Rating 115 | 7 9 12 33 43 55 57 47 35 36 48 71 83 82 82 94 115 Average Rating 45 | 6 8 10 29 38 43 53 40 27 27 27 56 75 80 80 80 86 On Entrance 38 | 6 7 9 12 33 42 55 43 34 35 21 23 68 80 82 82 20 Avg Prop Armor Cover (%) 13 | . . . . . . 21 21 . 11 26 17 . . . 15 6 Naked Turns . | . . . . . . . . . . . . . . . . . Heaviest Build 92 | 12 50 51 70 72 77 89 67 67 67 8 67 58 59 59 92 59 Greatest Support 118 | 20 40 40 60 82 112 118 20 20 20 18 92 100 100 100 100 64 Greatest Overweight (x) 6 | . 1 1 1 . . 4 4 3 3 1 1 . . . 6 1 Average Overweight (x) . | . . 1 . . . . 3 2 . . . . . . . . Largest Inventory Capacity 20 | 8 20 20 20 20 20 20 20 20 20 5 10 10 10 10 20 5 Average Capacity 16 | 8 18 20 20 20 20 20 20 20 13 5 6 10 10 10 18 5 Most Carried 20 | 7 19 20 20 20 20 20 20 20 20 5 10 10 10 10 20 5 Average Carried 15 | 6 16 19 19 19 19 19 18 17 12 4 6 9 10 10 16 4 Final Capacity 20 | 8 20 20 20 20 20 20 20 20 5 5 10 10 10 10 5 5 Final Carried 20 | 7 18 19 20 19 20 17 19 19 5 5 10 10 10 10 4 5 Class Distribution -------------------- 51% | Mutant 32% | Scavenger-Mutant 4% | Scavenger-Assassin 3% | Scavenger-Scout 3% | Assassin Dominant Class ---------------- Mutant | -10/Materials Mutant | -10/Subcaves Scavenger-Mutant | -8/Materials Scavenger-Mutant | -7/Factory Mutant | -7/Waste Mutant | -7/Factory Mutant | -7/Lower Caves Mutant | -7/Data Miner Mutant | -6/Proximity Caves Mutant | -6/Factory Scavenger-Mutant | -6/Extension Scavenger-Mutant | -6/Cetus Scavenger-Mutant | -6/Archives Scavenger-Mutant | -6/Hub_04(d) Scavenger-Assassin | -5/Factory Scavenger-Scout | -4/Factory Resources | -11 -10 -10 -8 -7 -7 -7 -7 -7 -6 -6 -6 -6 -6 -6 -5 -4 ----------- Run | Yrd Mat Sub Mat Fac Was Fac Low Dat Pro Fac Ext Cet Arc Hub Fac Fac Matter Collected 7423 | 236 566 618 1290 430 106 992 408 . 300 133 564 222 122 95 482 859 Remotely . | . . . . . . . . . . . . . . . . . Salvage Created 7923 | 111 661 237 1634 748 . 1335 195 . 79 172 711 167 263 291 603 716 Parts 377 | 6 52 23 84 28 . 51 9 . 7 3 31 4 13 12 33 21 Haulers Intercepted 4 | . 2 . 1 . . . . . . . . . . . 1 . Recyclers Shooed 10 | 1 1 . 3 . . 1 . . . . 1 . . . 3 . Parts Field Recycled . | . . . . . . . . . . . . . . . . . Retrieved Matter . | . . . . . . . . . . . . . . . . . Parts Self-Destructed 24 | . . 13 . . . . 8 . 3 . . . . . . . Prevented . | . . . . . . . . . . . . . . . . . Parts Restored . | . . . . . . . . . . . . . . . . . Kills | -11 -10 -10 -8 -7 -7 -7 -7 -7 -6 -6 -6 -6 -6 -6 -5 -4 ------- Run | Yrd Mat Sub Mat Fac Was Fac Low Dat Pro Fac Ext Cet Arc Hub Fac Fac Combat Hostiles Destroyed 159 | . 17 11 30 12 . 31 6 . 4 2 7 3 3 4 17 12 Melee 15 | . . . . 5 . 5 . . 3 2 . . . . . . Guns 73 | . 15 7 20 5 . 3 5 . 1 . 3 3 3 4 4 . Cannons 29 | . . . . 1 . 10 . . . . 1 . . . 7 10 AOE 37 | . 2 4 10 . . 9 1 . . . 3 . . . 6 2 Classes Destroyed 21 | 2 5 2 3 2 . 2 1 . 1 . 2 . . . . 1 Worker 3 | . 2 . . 1 . . . . . . . . . . . . Builder 6 | . . . 2 2 . 1 . . . . . . . . 1 . Tunneler 6 | 1 1 . 1 . . 1 . . . 1 . . . . 1 . Hauler 4 | . 2 . 1 . . . . . . . . . . . 1 . Recycler 14 | 1 . . 3 1 . 4 . . . 1 3 . . . . 1 Minesweeper 1 | . . . . . . . 1 . . . . . . . . . Mechanic 2 | . . . . 1 . . . . . . 1 . . . . . Operator 2 | . . . . . . . . . . . 1 . 1 . . . Drone 1 | . . . . . . . . . 1 . . . . . . . Watcher 16 | . 3 . 4 3 . 2 . . . . . . . 2 . 2 Swarmer 46 | . 6 7 4 1 . 6 4 . 3 2 4 . . . 4 5 Cutter 1 | . . . . . . . . . . . . . . . . 1 Grunt 47 | . 11 . 17 2 . 9 2 . . . 1 . . 2 3 . Brawler 1 | . . . 1 . . . . . . . . . . . . . Duelist 3 | . . . . . . 3 . . . . . . . . . . Sentry 21 | . . 1 7 2 . 5 . . . . 1 . 3 1 1 . Hunter 7 | . . . 1 1 . . . . . . . . . . 5 . Programmer 24 | . . . . 6 . 7 . . . . . . . 1 4 6 Heavy 1 | . . . . . . 1 . . . . . . . . . . Behemoth 1 | . . . . . . . . . . . 1 . . . . . Cetus Guard 3 | . . . . . . . . . . . . 3 . . . . Subdweller 3 | . . 3 . . . . . . . . . . . . . . Packrat 1 | . . . . . . . 1 . . . . . . . . . Best Kill Streak 8 | 2 6 5 8 3 . 6 4 . 3 3 5 2 2 2 6 3 Combat Bots Only 7 | . 3 5 7 2 . 4 4 . 3 2 4 2 1 2 6 3 Max Kills in Single Turn 6 | 1 3 3 6 1 . 2 1 . 1 1 3 1 1 1 3 2 Gunslinging 1 | . 1 . . . . . . . . . . . . . . . Exploded 5 | . 2 3 5 . . 2 1 . . . 3 . . . 3 2 Melee 1 | . . . . 1 . 1 . . 1 1 . . . . . . Uniques/NPCs Destroyed . | . . . . . . . . . . . . . . . . . Combat | -11 -10 -10 -8 -7 -7 -7 -7 -7 -6 -6 -6 -6 -6 -6 -5 -4 -------- Run | Yrd Mat Sub Mat Fac Was Fac Low Dat Pro Fac Ext Cet Arc Hub Fac Fac Hostile Shots Fired 1590 | . 81 72 162 138 . 271 39 . 42 154 62 20 12 42 306 189 Missed 538 | . 24 20 39 48 . 94 13 . 15 73 28 7 6 9 90 72 Hits 1052 | . 57 52 123 90 . 177 26 . 27 81 34 13 6 33 216 117 Melee 31 | . . . . . . 5 6 . . . . . . . . 20 Projectile 1021 | . 57 52 123 90 . 172 20 . 27 81 34 13 6 33 216 97 AOE 3 | . . . . . . . . . . . . . . . . 3 Critical Strikes 46 | . 1 . 3 2 . 10 1 . 3 . 1 3 . . 9 13 Part Disruptions 1 | . . . . . . . . . . . . . . . 1 . Damage Taken 16829 | . 625 662 1780 1229 . 2641 330 . 400 1029 453 402 166 287 3939 2886 Core 3490 | . 86 119 142 80 . 172 45 . 172 528 114 . . 26 839 1167 Absorbed by Shields 72 | . . . . . . . . . . . 21 . . . . 51 Ignored by Resistances 52 | . . . . . . . . . . . 52 . . . . . Regen/Repaired (Parts) 351 | . 171 . 24 . . 156 . . . . . . . . . . Core Remaining (%) 43 | 100 . 18 74 . . . . . 33 . . . . 21 16 . Volleys Fired 592 | 4 64 30 108 24 . 64 11 . 12 . 37 20 14 16 51 137 Largest 2 | 2 2 2 2 2 . 2 2 . 2 . 2 2 2 2 2 2 Hottest 196 | 40 40 45 86 68 . 73 58 . 73 . 118 118 63 116 128 196 Shots Fired 991 | 8 120 54 205 46 . 106 19 . 22 . 56 39 28 32 89 167 Gun 640 | 8 112 49 195 41 . 41 14 . 10 . 23 33 28 32 33 21 Cannon 295 | . . . . 5 . 51 . . 12 . 30 6 . . 46 145 Launcher 56 | . 8 5 10 . . 14 5 . . . 3 . . . 10 1 Special . | . . . . . . . . . . . . . . . . . Kinetic 711 | 8 112 49 182 46 . 92 14 . 22 . 23 33 28 16 60 26 Thermal 224 | . . . 13 . . . . . . . 30 6 . 16 19 140 Explosive 56 | . 8 5 10 . . 14 5 . . . 3 . . . 10 1 Electromagnetic . | . . . . . . . . . . . . . . . . . Robot Hit Streak 23 | 4 12 14 11 7 . 14 9 . 3 . 9 15 10 17 23 12 Robot Miss Streak 10 | 1 3 2 6 5 . 3 2 . 7 . 2 3 1 6 4 10 Penetration Max 1 | . . . . . . . . . . . 1 . 1 1 . . Secondary Targets 4 | . 1 . 1 . . . 1 . . . . . . . 1 . Max Gunslinging Chain 1 | . 1 . 1 . . . 1 . . . . . . . 1 . Shots Hit Robots 690 | 5 75 33 143 66 . 105 15 . 13 6 39 31 23 18 67 51 Core Hits 363 | 3 41 18 84 21 . 56 12 . 3 1 33 13 13 9 34 22 Critical Kills 10 | . . . 1 1 . 2 1 . . 1 . 2 1 . . 1 Critical Parts Destroyed 28 | . . . . 8 . 11 . . . 4 . 2 . 1 1 1 Critical Strikes 55 | . . 1 2 9 . 18 1 . 1 5 . 5 1 2 8 2 Burn 3 | . . . 1 . . . . . . . . . . 1 1 . Meltdown 1 | . . . . . . . . . . . . . . . . 1 Destroy 13 | . . 1 1 1 . 1 . . . . . 5 1 1 1 1 Blast 11 | . . . . . . 4 . . 1 . . . . . 6 . Smash 27 | . . . . 8 . 13 1 . . 5 . . . . . . Melee Attacks 277 | . . . 15 80 . 72 17 . 13 43 2 . . 4 31 . Impact 277 | . . . 15 80 . 72 17 . 13 43 2 . . 4 31 . Slashing . | . . . . . . . . . . . . . . . . . Piercing . | . . . . . . . . . . . . . . . . . Sneak Attacks 18 | . . . 1 7 . 3 2 . . 2 . . . . 3 . Combat Hostiles . | . . . . . . . . . . . . . . . . . Follow-up Attacks . | . . . . . . . . . . . . . . . . . Damage Inflicted 22742 | 50 1166 651 3497 2547 . 4474 730 . 468 430 1748 792 699 496 2946 2048 Guns 7990 | 50 812 397 2504 470 . 592 145 . 52 . 399 630 699 487 541 212 Cannons 5060 | . . . . 80 . 1131 . . 134 . 782 162 . . 1044 1727 Explosions 4801 | . 353 254 874 . . 1260 363 . . . 567 . . . 1021 109 Melee 4800 | . . . 79 1997 . 1491 222 . 282 430 . . . . 299 . Ramming 91 | . 1 . 40 . . . . . . . . . . 9 41 . Kinetic 9620 | 50 812 397 2297 550 . 1723 145 . 186 . 399 630 699 246 1199 287 Thermal 3430 | . . . 207 . . . . . . . 782 162 . 241 386 1652 Explosive 4692 | . 353 254 874 . . 1260 363 . . . 567 . . . 1021 . Electromagnetic 109 | . . . . . . . . . . . . . . . . 109 Impact 4800 | . . . 79 1997 . 1491 222 . 282 430 . . . . 299 . Slashing . | . . . . . . . . . . . . . . . . . Piercing . | . . . . . . . . . . . . . . . . . Highest Corruption 16 | . 1 1 . 10 10 15 15 15 16 . . . . 1 8 10 Average Corruption 8 | . 1 1 . 3 10 12 15 15 15 . . . . 1 4 3 Corruption Purged . | . . . . . . . . . . . . . . . . . Corruption Blocked . | . . . . . . . . . . . . . . . . . Effects 355 | . 1 6 . 38 17 156 56 12 18 . . . . 1 23 27 Message Errors 76 | . 1 3 . 9 2 35 10 4 4 . . . . 1 2 5 Matter Fused 80 | . . 1 . 8 8 34 17 4 3 . . . . . 1 4 Heat Flow Errors 48 | . . . . 6 3 21 4 2 2 . . . . . 6 4 Energy Discharges 43 | . . . . 5 2 20 7 . 2 . . . . . 3 4 Parts Rejected 5 | . . . . . . 1 . . . . . . . . 3 1 Parts Fused 8 | . . . . 2 . 4 1 . 1 . . . . . . . Data Loss (minor) 50 | . . 1 . 4 1 24 5 2 3 . . . . . 6 4 Data Loss (major) 13 | . . . . 1 1 6 4 . . . . . . . . 1 Misfires 11 | . . . . 1 . 3 4 . . . . . . . . 3 Alerts 13 | . . . . 2 . 6 2 . 1 . . . . . 1 1 Misdirections 2 | . . . . . . 1 . . 1 . . . . . . . Weapon Failures 6 | . . 1 . . . 1 2 . 1 . . . . . 1 . Overload Shots . | . . . . . . . . . . . . . . . . . Overflow Damage 2130 | . 4 15 57 766 . 593 133 . 74 324 3 . . . 52 109 Projectiles 158 | . . . . . . 47 . . 35 . 3 . . . . 73 Explosions 185 | . 4 15 57 . . 28 39 . . . . . . . 6 36 Melee 1787 | . . . . 766 . 518 94 . 39 324 . . . . 46 . Knockbacks 36 | . . . . 7 . 12 . . 4 1 . . . . 12 . Impact 12 | . . . . 7 . 2 . . 1 1 . . . . 1 . Kinetic 22 | . . . . . . 8 . . 3 . . . . . 11 . Secondary 2 | . . . . . . 2 . . . . . . . . . . Self-Inflicted Damage 378 | . 5 23 52 . . 139 . . . . 27 . . . 69 63 Shots 12 | . 1 1 2 . . 3 . . . . 1 . . . 2 2 Rammed 4 | . 1 . 3 . . . . . . . . . . . . . Targets Rammed 11 | . 1 . 3 . . . . . . . . . . 1 6 . Kicked 7 | . . . . . . . . . . . . . . 1 6 . Crushed . | . . . . . . . . . . . . . . . . . Highest Temperature 699 | . 9 . 63 277 189 328 234 224 266 . 275 270 156 314 272 699 Average Temperature 100 | . 7 . 18 84 78 97 76 102 64 . 74 69 56 97 79 136 Received Heat Transfer 2921 | . 216 162 738 114 . 411 72 . . 204 86 9 27 87 774 21 Effects 35 | . . . . . . 3 . . . . 2 1 . . 1 28 Shutdowns 9 | . . . . . . . . . . . . . . . . 9 Energy Bleed 3 | . . . . . . . . . . . . 1 . . . 2 Interference 12 | . . . . . . 3 . . . . 2 . . . 1 6 Matter Decay 1 | . . . . . . . . . . . . . . . . 1 Short Circuit 5 | . . . . . . . . . . . . . . . . 5 Damage (minor) 2 | . . . . . . . . . . . . . . . . 2 Damage (core) 3 | . . . . . . . . . . . . . . . . 3 Siege Activations . | . . . . . . . . . . . . . . . . . Martial Activations . | . . . . . . . . . . . . . . . . . Shielding Activations . | . . . . . . . . . . . . . . . . . Robots Disrupted . | . . . . . . . . . . . . . . . . . Combat Hostiles . | . . . . . . . . . . . . . . . . . Robots Corrupted 12 | . . . . 5 . 5 1 . . . . . . . 1 . Combat Hostiles 5 | . . . . 1 . 4 . . . . . . . . . . Parts Fried 23 | . . . . 10 . 7 . . . 4 1 . . . 1 . Impact Corruptions 68 | . . . . 31 . 21 4 . 2 7 . . . . 3 . Robots Melted 1 | . . . . . . . . . . . . . . . . 1 Combat Hostiles . | . . . . . . . . . . . . . . . . . Parts Melted 13 | . . . 1 . . . . . . . 3 . . 1 4 4 Heat Transferred 5291 | . . . 518 . . . . . . . 1200 250 . 444 629 2250 Parts Sabotaged . | . . . . . . . . . . . . . . . . . Parts Stolen 4 | . . . . . . . 4 . . . . . . . . . Parts Stripped . | . . . . . . . . . . . . . . . . . Power Chain Reactions . | . . . . . . . . . . . . . . . . . Alert | -11 -10 -10 -8 -7 -7 -7 -7 -7 -6 -6 -6 -6 -6 -6 -5 -4 ------- Run | Yrd Mat Sub Mat Fac Was Fac Low Dat Pro Fac Ext Cet Arc Hub Fac Fac Maximum Alert Level 3 | . . . 1 . . 1 . . . 3 3 2 1 . 1 1 Low Security (%) 74 | 100 100 . 64 100 100 84 . . . . . . 95 100 78 97 Level 1 12 | . . . 35 . . 15 . . . . 12 1 4 . 21 2 Level 2 8 | . . . . . . . . . . . 68 98 . . . . Level 3 4 | . . . . . . . . . . 100 18 . . . . . Level 4 . | . . . . . . . . . . . . . . . . . Level 5 . | . . . . . . . . . . . . . . . . . High Security . | . . . . . . . . . . . . . . . . . Max Security . | . . . . . . . . . . . . . . . . . Peak Influence 1077 | 10 110 . 273 121 8 382 . . . 1077 1056 653 209 91 273 284 Initial 806 | . . . 69 121 8 . . . . 806 445 585 162 55 36 57 Average 160 | 3 40 . 118 41 . 136 . . . 920 565 549 174 30 102 38 Influence Increases 8530 | 10 603 230 1009 500 . 1044 210 . 175 1281 1313 282 137 197 783 756 Destroy 0b10 Robot/C 3880 | . 340 160 600 240 . 620 120 . 80 160 680 140 80 80 340 240 Destroy 0b10 Robot/NC 315 | 10 40 . 55 40 . 40 5 . 10 10 50 10 5 10 15 15 Destroy Leader 776 | . 80 10 150 96 . 164 10 . 20 20 76 . . 24 82 44 Allied During Kill 501 | . . . . . . . . . 20 1 399 76 5 . . . Successful Hack 147 | . 26 . 27 19 . 12 . . . 7 5 20 . 13 4 14 Disable Machine 435 | . . . 60 . . 75 . . . 30 45 . 45 60 45 75 Destroy Structure 751 | . 42 . 42 30 . 118 . . . 33 43 21 2 10 252 158 Advance Influence 750 | . . . . . . . . . . 750 . . . . . . Partial Spotted 45 | . . . . 15 . . . . . 15 . 15 . . . . Lose Combat Pursuer 930 | . 75 60 75 60 . 15 75 . 45 255 15 . . . 45 210 Influence Decreases 8246 | 10 511 188 876 744 23 665 475 114 85 460 1177 924 383 281 740 590 Entered New Map 1935 | . . 45 65 146 15 . 141 114 . 34 466 462 243 104 39 61 Time Decay 4988 | 10 511 133 641 495 8 585 324 . 65 246 571 222 120 177 471 409 Search Patrol Dispatched 100 | . . . . . . . . . . 100 . . . . . . Lost Part 590 | . . 10 20 20 . 80 10 . 20 60 20 . . . 230 120 Lost Ally 400 | . . . . . . . . . . 20 120 240 20 . . . Purge Threat 233 | . . . 150 83 . . . . . . . . . . . . Squads Dispatched 40 | . 4 . 1 6 . 11 . . . 4 2 . . 1 4 7 Investigation 2 | . 1 . . . . . . . . . . . . . 1 . Extermination 22 | . . . . 5 . 7 . . . 1 . . . 1 3 5 Reinforcement 15 | . 3 . 1 1 . 4 . . . 3 1 . . . . 2 Assault 1 | . . . . . . . . . . . 1 . . . . . Garrison . | . . . . . . . . . . . . . . . . . Intercept . | . . . . . . . . . . . . . . . . . Searches Triggered 1 | . . . . . . . . . . 1 . . . . . . Construction Impeded 2 | . . . . . . 1 . . . 1 . . . . . . Haulers Reinforced 1 | . . . . 1 . . . . . . . . . . . . Active Scanning Responses . | . . . . . . . . . . . . . . . . . Cargo Convoy Interrupts 1 | . . . . . . 1 . . . . . . . . . . Stealth | -11 -10 -10 -8 -7 -7 -7 -7 -7 -6 -6 -6 -6 -6 -6 -5 -4 --------- Run | Yrd Mat Sub Mat Fac Was Fac Low Dat Pro Fac Ext Cet Arc Hub Fac Fac Distress Signals 16 | . 2 . 4 2 . . . . 2 2 1 2 . . 1 . Communications Jammed 83 | . . . . 9 . 8 . . . . . . . 36 30 . Distress Signals 66 | . . . . . . . . . . . . . . 36 30 . Times Spotted 355 | . 28 14 46 26 . 39 13 . 11 30 35 12 11 10 30 50 Peak Tracking Total 17 | . 5 8 7 4 . 4 4 . 5 9 8 5 2 2 6 17 Tactical Retreats 29 | . 4 1 3 2 . 1 4 . 2 5 1 . . . 1 5 Traps | -11 -10 -10 -8 -7 -7 -7 -7 -7 -6 -6 -6 -6 -6 -6 -5 -4 ------- Run | Yrd Mat Sub Mat Fac Was Fac Low Dat Pro Fac Ext Cet Arc Hub Fac Fac Traps Triggered 10 | . 2 . . 4 . 2 . . . . 2 . . . . . Indirectly . | . . . . . . . . . . . . . . . . . Trap Hack Attempts . | . . . . . . . . . . . . . . . . . Triggered . | . . . . . . . . . . . . . . . . . Disarmed . | . . . . . . . . . . . . . . . . . Reprogrammed . | . . . . . . . . . . . . . . . . . Reused . | . . . . . . . . . . . . . . . . . Traps Extracted . | . . . . . . . . . . . . . . . . . Installed 1 | . . . . . . . . . 1 . . . . . . . Triggered . | . . . . . . . . . . . . . . . . . Most Traps Carried 2 | . . . . . . . 2 2 2 1 . . . . . . Machines | -11 -10 -10 -8 -7 -7 -7 -7 -7 -6 -6 -6 -6 -6 -6 -5 -4 ---------- Run | Yrd Mat Sub Mat Fac Was Fac Low Dat Pro Fac Ext Cet Arc Hub Fac Fac Machines Disabled 30 | . . . 4 . . 5 . . . 2 4 . 3 4 3 5 Max in Single Turn 2 | . . . 2 . . 1 . . . 1 1 . 1 1 1 1 Garrison Access 1 | . . . . . . . . . . . . . . . . 1 Machines Repaired . | . . . . . . . . . . . . . . . . . Machines Dismantled . | . . . . . . . . . . . . . . . . . Machines Sabotaged . | . . . . . . . . . . . . . . . . . Overloaded Fab Kills . | . . . . . . . . . . . . . . . . . Hacking | -11 -10 -10 -8 -7 -7 -7 -7 -7 -6 -6 -6 -6 -6 -6 -5 -4 --------- Run | Yrd Mat Sub Mat Fac Was Fac Low Dat Pro Fac Ext Cet Arc Hub Fac Fac Machines Accessed 62 | . 8 . 10 7 . 8 1 4 . 4 3 3 . 2 6 6 Terminals 41 | . 7 . 8 3 . 5 1 . . 3 3 3 . 2 3 3 Fabricators 2 | . . . . . . . . . . . . . . . 2 . Repair Stations 5 | . 1 . 1 1 . 2 . . . . . . . . . . Recycling Units . | . . . . . . . . . . . . . . . . . Scanalyzers 5 | . . . 1 . . 1 . . . . . . . . 1 2 Garrison Access 5 | . . . . 3 . . . . . 1 . . . . . 1 Total Hacks 184 | . 36 . 34 13 . 18 1 30 . 7 7 9 . 10 10 9 Successful 108 | . 24 . 20 4 . 8 1 30 . 3 3 3 . 5 4 3 Failed 75 | . 12 . 14 9 . 10 . . . 4 4 6 . 5 6 5 Catastrophic 10 | . . . 1 2 . . . . . 2 . 1 . . 3 1 Database Lockouts 1 | . . . . . . . . . . . . . . . . 1 Manual 68 | . 20 . 20 1 . 7 . . . 3 2 1 . 6 5 3 Terminals 121 | . 31 . 28 6 . 13 1 . . 6 7 9 . 10 5 5 Fabricators 4 | . . . . . . . . . . . . . . . 4 . Repair Stations 14 | . 5 . 3 3 . 3 . . . . . . . . . . Recycling Units . | . . . . . . . . . . . . . . . . . Scanalyzers 9 | . . . 3 . . 2 . . . . . . . . 1 3 Garrison Access 6 | . . . . 4 . . . . . 1 . . . . . 1 Terminal Hacks 65 | . 9 . 4 3 . 4 1 30 . 3 2 3 . 4 1 1 Record 14 | . . . . . . . 1 11 . . . 2 . . . . Part Schematic 11 | . 2 . . . . . . 9 . . . . . . . . Robot Schematic 7 | . . . . . . . . 7 . . . . . . . . Robot Analysis 3 | . 2 . . . . . . . . 1 . . . . . . Prototype ID Bank 5 | . 2 . . . . . . 3 . . . . . . . . Open Door 2 | . . . . . . . . . . 1 . 1 . . . . Open DSF 1 | . . . . 1 . . . . . . . . . . . . Level Access Points 1 | . . . . . . . . . . . . . . 1 . . Branch Access Points 2 | . . . 1 . . 1 . . . . . . . . . . Terminal Index 1 | . . . 1 . . . . . . . . . . . . . Alert Level 2 | . . . . . . . . . . 1 . . . 1 . . Unreport Threat 2 | . . . 1 1 . . . . . . . . . . . . Locate Traps 11 | . 3 . 1 1 . 2 . . . . 1 . . 1 1 1 Extermination Status 1 | . . . . . . 1 . . . . . . . . . . Zone Layout 2 | . . . . . . . . . . . 1 . . 1 . . Fabricator Hacks 2 | . . . . . . . . . . . . . . . 2 . Load Schematic 2 | . . . . . . . . . . . . . . . 2 . Repair Station Hacks 9 | . 4 . 2 1 . 2 . . . . . . . . . . Scan Component 5 | . 2 . 1 1 . 1 . . . . . . . . . . Repair 4 | . 2 . 1 . . 1 . . . . . . . . . . Recycling Unit Hacks . | . . . . . . . . . . . . . . . . . Scanalyzer 3 | . . . 2 . . . . . . . . . . . . 1 Retrieve Study 3 | . . . 2 . . . . . . . . . . . . 1 Garrison Access Hacks 1 | . . . . . . . . . . . . . . . . 1 Seal Access 1 | . . . . . . . . . . . . . . . . 1 Unauthorized Hacks 28 | . 11 . 12 . . 2 . . . . 1 . . 1 1 . Terminals 27 | . 11 . 12 . . 2 . . . . 1 . . 1 . . Track 6 | . 2 . 3 . . 1 . . . . . . . . . . Botnet 10 | . 3 . 4 . . 1 . . . . 1 . . 1 . . Skim 11 | . 6 . 5 . . . . . . . . . . . . . Fabricators 1 | . . . . . . . . . . . . . . . 1 . Recompile 1 | . . . . . . . . . . . . . . . 1 . Repair Stations . | . . . . . . . . . . . . . . . . . Recycling Units . | . . . . . . . . . . . . . . . . . Scanalyzers . | . . . . . . . . . . . . . . . . . Garrison Access . | . . . . . . . . . . . . . . . . . Data Cores Recovered 1 | . . . . . . . . . . . 1 . . . . . Used . | . . . . . . . . . . . . . . . . . Hacking Detections 51 | . 8 . 9 6 . 7 . . . 3 3 4 . 2 5 4 Full Trace Events 1 | . 1 . . . . . . . . . . . . . . . Feedback Events 1 | . 1 . . . . . . . . . . . . . . . Corruption 1 | . 1 . . . . . . . . . . . . . . . Feedback Blocked . | . . . . . . . . . . . . . . . . . Robot Schematics Acquired 7 | . . . . . . . . 7 . . . . . . . . Robots Built . | . . . . . . . . . . . . . . . . . Authchips . | . . . . . . . . . . . . . . . . . Time . | . . . . . . . . . . . . . . . . . Total Robot Build Rating . | . . . . . . . . . . . . . . . . . Part Schematics Acquired 10 | . 1 . . . . . . 9 . . . . . . . . Parts Built . | . . . . . . . . . . . . . . . . . Authchips . | . . . . . . . . . . . . . . . . . Time . | . . . . . . . . . . . . . . . . . Total Part Build Rating . | . . . . . . . . . . . . . . . . . Part Studies Acquired 3 | . . . 2 . . . . . . . . . . . . 1 Parts Repaired 4 | . 2 . 1 . . 1 . . . . . . . . . . Time 146 | . 52 . 38 . . 56 . . . . . . . . . . Parts Recycled . | . . . . . . . . . . . . . . . . . Recycled Matter . | . . . . . . . . . . . . . . . . . Retrieved Matter . | . . . . . . . . . . . . . . . . . Retrieved Components . | . . . . . . . . . . . . . . . . . Parts Scanalyzed . | . . . . . . . . . . . . . . . . . Part Schematics Acquired . | . . . . . . . . . . . . . . . . . Parts Damaged . | . . . . . . . . . . . . . . . . . Bothacking | -11 -10 -10 -8 -7 -7 -7 -7 -7 -6 -6 -6 -6 -6 -6 -5 -4 ------------ Run | Yrd Mat Sub Mat Fac Was Fac Low Dat Pro Fac Ext Cet Arc Hub Fac Fac Used RIF Installer . | . . . . . . . . . . . . . . . . . Robots Hacked . | . . . . . . . . . . . . . . . . . Non-combat . | . . . . . . . . . . . . . . . . . Combat . | . . . . . . . . . . . . . . . . . Robot Hacks Applied . | . . . . . . . . . . . . . . . . . Relay Couplers Released . | . . . . . . . . . . . . . . . . . Fabnet Peak Effective % . | . . . . . . . . . . . . . . . . . Robots Rewired 11 | . . . . . . . . . . . 11 . . . . . Allies Hacked . | . . . . . . . . . . . . . . . . . Hacks Repelled . | . . . . . . . . . . . . . . . . . Allies | -11 -10 -10 -8 -7 -7 -7 -7 -7 -6 -6 -6 -6 -6 -6 -5 -4 -------- Run | Yrd Mat Sub Mat Fac Was Fac Low Dat Pro Fac Ext Cet Arc Hub Fac Fac Total Allies 26 | . . . . . . . . . 1 . 20 5 . . . . Largest Group 11 | . . . . . . . . . 1 1 11 10 1 . . . Highest-Rated Group 610 | . . . . . . . . . 96 96 470 610 96 . . . Highest-Rated Ally 159 | . . . . . . . . . 96 96 159 144 96 . . . Total Orders . | . . . . . . . . . . . . . . . . . Ally Attacks 272 | . . . . . . . . . 9 12 175 68 8 . . . Total Damage 7245 | . . . . . . . . . 154 690 3447 2584 370 . . . Kills 53 | . . . . . . . . . 2 6 37 7 1 . . . Allies Corrupted . | . . . . . . . . . . . . . . . . . Allies Melted . | . . . . . . . . . . . . . . . . . Intel | -11 -10 -10 -8 -7 -7 -7 -7 -7 -6 -6 -6 -6 -6 -6 -5 -4 ------- Run | Yrd Mat Sub Mat Fac Was Fac Low Dat Pro Fac Ext Cet Arc Hub Fac Fac Active Infowar (turns) 20909 | 13 548 685 3414 2746 413 3867 1408 287 344 520 1738 461 254 510 1735 1966 Optics 19660 | . . . 3411 2746 413 3867 1408 287 344 520 1738 461 254 510 1735 1966 Sensors 5007 | . . . . . . . 1401 287 228 83 463 . . . 974 1571 IFF 280 | . . . . . . . . . . . . . . . 280 . Seismic 10216 | 13 548 685 850 2704 413 3766 723 287 227 . . . . . . . Jamming 7158 | . . . . 1624 413 2261 640 . . . 397 . . 365 1458 . Robot Analysis Total 3 | . 2 . . . . . . . . 1 . . . . . . Derelict Logs Recovered 4 | . . . . . . . 3 . 1 . . . . . . . Drone Launches . | . . . . . . . . . . . . . . . . . Drone Recoveries . | . . . . . . . . . . . . . . . . . Exploration | -11 -10 -10 -8 -7 -7 -7 -7 -7 -6 -6 -6 -6 -6 -6 -5 -4 ------------- Run | Yrd Mat Sub Mat Fac Was Fac Low Dat Pro Fac Ext Cet Arc Hub Fac Fac Turns Passed 23039 | 37 2010 1329 3414 2746 413 3867 1408 287 344 520 1738 461 254 510 1735 1966 Spaces Moved 12754 | 19 822 479 1211 1272 253 1938 622 83 253 879 1049 287 133 374 1052 2028 Core 514 | . . . . . . . . . 21 365 85 . . . . 43 Treads 6247 | . 812 479 1211 1272 253 1893 140 83 36 . 67 1 . . . . Legs 2638 | 19 10 . . . . . . . . . 897 286 133 374 919 . Wheels 1085 | . . . . . . 45 482 . . . . . . . 86 472 Hover 1010 | . . . . . . . . . 23 . . . . . 47 940 Flight 1260 | . . . . . . . . . 173 514 . . . . . 573 Fastest Speed 21 | 120 120 240 160 158 158 158 145 330 29 32 50 110 113 113 66 21 Average Speed 139 | 120 205 240 218 160 158 161 202 340 89 42 116 113 113 113 115 62 Slowest Speed 410 | 120 240 240 240 162 158 166 410 410 410 100 160 160 113 113 185 111 Overloaded Moves 48 | . . . . . . . . . . . . . . . . 48 Propulsion Burnouts . | . . . . . . . . . . . . . . . . . Robots Hopped 18 | . . . . . . . . . . 7 . . . . . 11 Potential Cave-ins . | . . . . . . . . . . . . . . . . . Cave-ins Triggered . | . . . . . . . . . . . . . . . . . Exploration Rate (%) 56 | 3 99 39 84 41 95 45 75 73 38 23 89 87 92 30 28 24 Regions Visited 16 Branch Regions 8 Pre-discovered Areas 2 | . . . 1 . . . . 1 . . . . . . . . Known Exits Taken 8 | . . . . . . 1 . . 1 1 1 1 1 1 1 . Unknown Exits Taken 6 | 1 1 1 1 . . . 1 1 . . . . . . . . Scrap Searched 5 | . . . . . . . 5 . . . . . . . . . Spaces Dug 172 | . 10 . 10 29 . 29 8 . . 25 2 . . 3 16 40 Terrain Destroyed 683 | . 48 28 40 29 . 151 29 . 12 25 54 5 3 8 142 109 Melee 119 | . . . 10 28 . 29 8 . . 25 2 . . 3 14 . Projectile 164 | . . . . 1 . 13 1 . 12 . 2 5 3 5 29 93 AOE 400 | . 48 28 30 . . 109 20 . . . 50 . . . 99 16 Terrain Rammed . | . . . . . . . . . . . . . . . . . Walls Destroyed . | . . . . . . . . . . . . . . . . . Machines Disabled . | . . . . . . . . . . . . . . . . . Actions | -11 -10 -10 -8 -7 -7 -7 -7 -7 -6 -6 -6 -6 -6 -6 -5 -4 --------- Run | Yrd Mat Sub Mat Fac Was Fac Low Dat Pro Fac Ext Cet Arc Hub Fac Fac Total 16526 | 25 1024 608 1788 1792 267 2423 728 91 331 946 1510 386 208 423 1420 2556 Wait 2112 | . 81 61 331 375 1 281 54 . 19 3 250 58 60 25 201 312 Move 12707 | 18 821 478 1210 1272 252 1937 621 82 252 865 1048 286 132 373 1051 2009 Hop 14 | . . . . . . . . . . 6 . . . . . 8 Pick Up 165 | 1 18 11 32 12 2 15 11 2 1 6 15 2 . . 27 10 Fast Attach 106 | 1 1 1 2 . 5 8 . 2 7 8 21 7 1 . 9 33 Attach 67 | . . 6 11 7 . 9 3 . 2 3 5 . . . 12 9 Detach 33 | . . 1 1 1 1 . . 1 4 3 4 . . . 3 14 Swap 137 | 1 22 10 33 11 . 18 5 . . . 14 2 . 4 15 2 Drop 219 | . 16 10 42 10 6 19 6 4 20 9 29 11 1 . 14 22 Fire 592 | 4 64 30 108 24 . 64 11 . 12 . 37 20 14 16 51 137 Melee 277 | . . . 15 80 . 72 17 . 13 43 2 . . 4 31 . Ram . | . . . . . . . . . . . . . . . . . Kick 7 | . . . . . . . . . . . . . . 1 6 . Crush 4 | . 1 . 3 . . . . . . . . . . . . . Escape Stasis 15 | . . . . . . . . . . . 15 . . . . . Rewire 70 | . . . . . . . . . . . 70 . . . . . Trap 1 | . . . . . . . . . 1 . . . . . . . Miscellaneous . | . . . . . . . . . . . . . . . . . Route ------- -11/Scrapyard -10/Materials (discovered 5 exits: [*Mat x3] / [*Min] / [*Sub]) -10/Subcaves -8/Materials (discovered 2 exits: *Fac x2) -7/Factory (discovered 5 exits: *Fac x3 / *Low x2) -7/Waste -7/Factory (discovered 2 exits: *Low x2) -7/Lower Caves (discovered 2 exits: *Low / *Dat) -7/Data Miner -6/Proximity Caves -6/Factory (discovered 3 exits: *Fac x2 / *Ext) -6/Extension (discovered 2 exits: *Fac / *Cet) -6/Cetus (discovered 2 exits: *Fac / *Arc) -6/Archives (discovered 3 exits: *Fac / *Hub x2) -6/Hub_04(d) (discovered 4 exits: *Fac x4) -5/Factory -4/Factory History --------- Turn | Location | Event 14 | -11/Scrapyard | Discovered new exit (range 3) 38 | -11/Scrapyard | Entered Materials 305 | -10/Materials | Build established: Mutant 602 | -10/Materials | Discovered new exit (range 8) 609 | -10/Materials | Discovered new exit (range 6) 984 | -10/Materials | Discovered new exit (range 5) 1354 | -10/Materials | Discovered new exit (range 12) 1573 | -10/Materials | Discovered new exit (range 16) 1943 | -10/Materials | Repaired Lgt. Treads 1970 | -10/Materials | Repaired Assault Rifle 2048 | -10/Materials | Entered Subcaves 2049 | -10/Subcaves | Approached by a straggling Scientist 2139 | -10/Subcaves | Shifting Twisted Machinery released Battle Rifle 2170 | -10/Subcaves | Shifting Twisted Machinery released Sub. Monowheel 2266 | -10/Subcaves | Shifting Twisted Machinery released Mak. System Shield 2308 | -10/Subcaves | Shifting Twisted Machinery released Sub. Laser 2829 | -10/Subcaves | Shifting Twisted Machinery released Sub. Machine Gun 2861 | -10/Subcaves | Shifting Twisted Machinery released Sub. Beam Cannon 2874 | -10/Subcaves | Core integrity fell below 50% 2919 | -10/Subcaves | Discovered new exit (range 4) 2992 | -10/Subcaves | A swath of the cavern ceiling suddenly collapsed 3315 | -10/Subcaves | Core integrity fell below 20% 3377 | -10/Subcaves | Entered Materials 3377 | -8/Materials | Evolved 4 slots: Propulsion x1, Utility x3 3438 | -8/Materials | Found Powered Armor 3440 | -8/Materials | Found Powered Armor 3443 | -8/Materials | Found Powered Armor 3446 | -8/Materials | Found Powered Armor 3674 | -8/Materials | Build established: Scavenger-Mutant 5234 | -8/Materials | Destroyed 7 combat bots 5407 | -8/Materials | Discovered new exit (range 7) 5546 | -8/Materials | Build established: Mutant 5572 | -8/Materials | Discovered new exit (range 6) 6165 | -8/Materials | Repaired Missile Launcher 6341 | -8/Materials | Build established: Scavenger-Mutant 6468 | -8/Materials | Learned Factory security intel 6517 | -8/Materials | Learned location of 2 exits from Factory 6557 | -8/Materials | Learned Factory stockpile data 6603 | -8/Materials | Learned location of 1 exit from Extension 6621 | -8/Materials | Learned location of Zion (-6) 6642 | -8/Materials | Learned location of 1 exit from Extension 6791 | -8/Materials | Entered Factory 6791 | -7/Factory | Evolved 2 slots: Propulsion x1, Utility x1 6792 | -7/Factory | Identified exit to Lower Caves 6793 | -7/Factory | Identified exit to Factory 8201 | -7/Factory | Discovered exit to Factory (range 7) 9176 | -7/Factory | Build established: Mutant 9428 | -7/Factory | System corruption reached 10% 9537 | -7/Factory | Sucked down chute 9537 | -7/Factory | Entered Waste 9537 | -7/Waste | The area was eerily silent 9926 | -7/Waste | Discovered new exit (range 14) 9950 | -7/Waste | Entered Factory 10535 | -7/Factory | Repaired Hvy. Treads 10673 | -7/Factory | Discovered exit to Lower Caves (range 7) 11049 | -7/Factory | Cargo convoy interrupted 13670 | -7/Factory | Lost 4 parts (1p1n1u1w) 13817 | -7/Factory | Entered Lower Caves 14210 | -7/Lower Caves | Learned Factory terminal intel 14285 | -7/Lower Caves | Identified exit to Lower Caves 15165 | -7/Lower Caves | A Derelict revealed a hidden shortcut to meet someone special 15225 | -7/Lower Caves | Entered Data Miner 15225 | -7/Data Miner | Discovered new exit (range 6) 15286 | -7/Data Miner | Met Data Miner 15362 | -7/Data Miner | Learned location of Section 7 (-2) 15362 | -7/Data Miner | Acquired the access code to Warlord's prototype stash 15422 | -7/Data Miner | Received God Mode back door access code from Data Miner 15512 | -7/Data Miner | Entered Proximity Caves 15596 | -6/Proximity Caves | Spotter reported a threat 15620 | -6/Proximity Caves | Spotter reported a threat 15673 | -6/Proximity Caves | Spotter reported a threat 15720 | -6/Proximity Caves | Spotted B-75 Beast 15747 | -6/Proximity Caves | Core integrity fell below 50% 15748 | -6/Proximity Caves | Spotter reported a threat 15766 | -6/Proximity Caves | Escorted by Enhanced Grunt 15801 | -6/Proximity Caves | Spotter reported a threat 15804 | -6/Proximity Caves | Lost 3 parts (2n1u) 15829 | -6/Proximity Caves | Learned Factory emergency access door positions 15835 | -6/Proximity Caves | Discovered exit to Factory (range 5) 15856 | -6/Proximity Caves | Entered Factory 15856 | -6/Factory | Accompanied by 1 ally 15856 | -6/Factory | Evolved 2 slots: Power x1, Propulsion x1 15857 | -6/Factory | Identified exit to Extension 15859 | -6/Factory | Loaded intel: 28 terminal locations 15923 | -6/Factory | Discovered new exit (range 6) 16104 | -6/Factory | Discovered new exit (range 17) 16134 | -6/Factory | Identified exit to Factory 16206 | -6/Factory | Search patrols dispatched 16332 | -6/Factory | Core integrity fell below 50% 16376 | -6/Factory | Entered Extension 16377 | -6/Extension | Identified exit to Cetus 16402 | -6/Extension | Lost 4 parts (4n) 16488 | -6/Extension | Rescued a captive Derelict 16490 | -6/Extension | Rescued a captive Derelict 16513 | -6/Extension | Rescued A7 16812 | -6/Extension | Build established: Scavenger-Assassin 16960 | -6/Extension | Rescued a captive Derelict 16968 | -6/Extension | Rescued a captive Derelict 17182 | -6/Extension | Build established: Commander-Mutant 17354 | -6/Extension | Spotted B-75 Beast 17365 | -6/Extension | Spotted B-75 Beast 17378 | -6/Extension | Allies destroyed B-75 Beast 17393 | -6/Extension | Destroyed B-75 Beast 17428 | -6/Extension | Lost 5 allies 17490 | -6/Extension | Build established: Scavenger-Mutant 17501 | -6/Extension | Disrupted transfer network 17776 | -6/Extension | First assault squad dispatched 17886 | -6/Extension | Rescued a captive Derelict 17973 | -6/Extension | Rescued a captive Derelict 18042 | -6/Extension | Rescued a captive Derelict 18043 | -6/Extension | Rescued a captive Derelict 18114 | -6/Extension | Entered Cetus 18114 | -6/Cetus | Accompanied by 9 allies (A7) 18119 | -6/Cetus | Acquired a Cetus Manufacturing Module code from A7 18127 | -6/Cetus | Spotted Cetus Guard 18128 | -6/Cetus | Spotted Cetus Guard 18129 | -6/Cetus | Spotted Cetus Guard 18131 | -6/Cetus | Extracted ID and sensor layout for unrecognized location from A7's data core 18132 | -6/Cetus | Spotted Cetus Guard 18138 | -6/Cetus | Allies destroyed Cetus Guard 18138 | -6/Cetus | Destroyed Cetus Guard 18140 | -6/Cetus | Allies destroyed Cetus Guard 18146 | -6/Cetus | Allies destroyed Cetus Guard 18175 | -6/Cetus | Lost 4 allies 18234 | -6/Cetus | Started Cetus Manufacturing Module 18259 | -6/Cetus | Manufactured an Enhanced Grunt 18280 | -6/Cetus | Discovered new exit (range 20) 18284 | -6/Cetus | Manufactured an Enhanced Grunt 18309 | -6/Cetus | Manufactured an Enhanced Grunt 18334 | -6/Cetus | Manufactured an Enhanced Grunt 18359 | -6/Cetus | Manufactured an Enhanced Grunt 18395 | -6/Cetus | Identified exit to Archives 18443 | -6/Cetus | Spotted Cetus Guard 18444 | -6/Cetus | Spotted Cetus Guard 18444 | -6/Cetus | Spotted Cetus Guard 18447 | -6/Cetus | Spotted Cetus Guard 18462 | -6/Cetus | Discovered exit to Factory (range 20) 18486 | -6/Cetus | Allies destroyed Cetus Guard 18487 | -6/Cetus | Destroyed Cetus Guard 18490 | -6/Cetus | Destroyed Cetus Guard 18509 | -6/Cetus | Met Revision 17 18518 | -6/Cetus | Lost 9 allies 18575 | -6/Cetus | Entered Archives 18575 | -6/Archives | Accompanied by 1 ally 18759 | -6/Archives | Unable to access archive contents 18763 | -6/Archives | Discovered exit to Factory (range 13) 18796 | -6/Archives | Discovered new exit (range 19) 18800 | -6/Archives | Discovered new exit (range 14) 18828 | -6/Archives | Identified exit to Hub_04(d) 18829 | -6/Archives | Entered Hub_04(d) 19320 | -6/Hub_04(d) | Disrupted transfer network 19339 | -6/Hub_04(d) | Entered Factory 19339 | -5/Factory | Evolved 2 slots: Utility x2 20444 | -5/Factory | Build established: Scavenger-Assassin 20653 | -5/Factory | Lost 3 parts (1p1n1u) 20710 | -5/Factory | Lost 5 parts (1p1n2u1w) 20911 | -5/Factory | Spotted B-75 Beast 21030 | -5/Factory | Lost 8 parts (1p2n3u2w) 21046 | -5/Factory | Core integrity fell below 50% 21058 | -5/Factory | Discovered new exit (range 19) 21068 | -5/Factory | Core integrity fell below 20% 21071 | -5/Factory | Identified exit to Factory 21074 | -5/Factory | Entered another Factory area 21074 | -4/Factory | Evolved 2 slots: Propulsion x1, Weapon x1 21097 | -4/Factory | Lost 5 parts (2n2u1w) 21638 | -4/Factory | Build established: Assassin 21925 | -4/Factory | Central database locked down 22251 | -4/Factory | Build established: Scavenger-Scout 22566 | -4/Factory | Found Prototype Processor 22566 | -4/Factory | Identified Exp. Signal Interpreter 22725 | -4/Factory | Core integrity fell below 50% 22739 | -4/Factory | Lost 5 parts (1n2u2w) 23003 | -4/Factory | Core integrity fell below 20% 23036 | -4/Factory | Spotted B-86 Titan 23037 | -4/Factory | System corruption reached 10% 23040 | -4/Factory | Destroyed by P-70 Sage with Tesla Rifle Last Messages --------------- 22998_ Acquired 66 matter. 22999_ Slug penetrates Wall. 22999_ Assembly Bed disabled. 22999_ Slug penetrates Wall. 23001_ System corrupted: Matter fused (-9). 23002_ Knocked back. 23010_ Field Propulsion Array destroyed. 23016_ Dropped Quantum Reactor. 23018_ 0DCVK4R|CXX#TD5:XJBFIY %AB,7SPQ